[Event "*** SCC Grand Prix: Titled Tuesday Blitz"]
[Site "Chess.com"]
[Date "2020.06.02"]
[Round "6"]
[White "gixfantastix"]
[Black "1f3_2g41-0"]
[Result "1-0"]
[WhiteElo "2088"]
[BlackElo "2236"]
[TimeControl "180+1"]
[EndTime "11:10:19 PDT"]
[Termination "gixfantastix won by resignation"]

1. e3 {[%clk 0:03:00.9]} 1... d5 {[%clk 0:02:46.3]} 2. b3 {[%clk 0:03:01.8]}
2... e5 {[%clk 0:02:45.9]} 3. Bb2 {[%clk 0:03:02.2]} 3... Nc6 {[%clk 0:02:45.8]}
4. Bb5 {[%clk 0:03:01.7]} 4... Bd6 {[%clk 0:02:44.1]} 5. f4 {[%clk 0:02:58.8]}
5... exf4 {[%clk 0:02:23.9]} 6. Bxg7 {[%clk 0:02:57.9]} 6... Qh4+ {[%clk
0:02:23.9]} 7. Kf1 {[%clk 0:02:58]} 7... fxe3 {[%clk 0:02:08.8]} 8. dxe3 {[%clk
0:02:58.9]} 8... Bg4 {[%clk 0:02:04.4]} 9. Nf3 {[%clk 0:02:56]} 9... Bxf3 {[%clk
0:02:01.3]} 10. Qxf3 {[%clk 0:02:56.9]} 10... f6 {[%clk 0:01:03.1]} 11. Bxh8
{[%clk 0:02:29.5]} 11... Be5 {[%clk 0:00:58.9]} 12. c3 {[%clk 0:02:17.7]} 12...
Ne7 {[%clk 0:00:53.8]} 13. g3 {[%clk 0:01:26]} 13... Qh3+ {[%clk 0:00:47.6]} 14.
Ke1 {[%clk 0:01:26]} 14... Kf7 {[%clk 0:00:41.4]} 15. Bxf6 {[%clk 0:01:11.6]}
15... Bxf6 {[%clk 0:00:42.3]} 16. Rf1 {[%clk 0:01:12.2]} 16... Qh6 {[%clk
0:00:38.1]} 17. Nd2 {[%clk 0:01:09.1]} 17... Ne5 {[%clk 0:00:37.8]} 18. Qe2
{[%clk 0:00:56.8]} 18... c6 {[%clk 0:00:35.2]} 19. Bd3 {[%clk 0:00:56.2]} 19...
Nxd3+ {[%clk 0:00:32.4]} 20. Qxd3 {[%clk 0:00:57.1]} 20... Qxh2 {[%clk
0:00:32.6]} 21. Kd1 {[%clk 0:00:44.8]} 21... Qxg3 {[%clk 0:00:30.7]} 22. Kc2
{[%clk 0:00:44.8]} 22... Ng6 {[%clk 0:00:29.1]} 23. Rf3 {[%clk 0:00:43.2]} 23...
Qe5 {[%clk 0:00:19.1]} 24. Raf1 {[%clk 0:00:41.7]} 24... Re8 {[%clk 0:00:16.9]}
25. e4 {[%clk 0:00:37.2]} 25... dxe4 {[%clk 0:00:16.4]} 26. Nxe4 {[%clk
0:00:37.2]} 26... Qxe4 {[%clk 0:00:15.5]} 27. Rxf6+ {[%clk 0:00:37.3]} 27... Kg7
{[%clk 0:00:14.1]} 28. Rf7+ {[%clk 0:00:36.8]} 28... Kh6 {[%clk 0:00:13.6]} 29.
Qxe4 {[%clk 0:00:28.5]} 29... Rxe4 {[%clk 0:00:13.2]} 30. Rh1+ {[%clk
0:00:26.6]} 30... Kg5 {[%clk 0:00:13.1]} 31. Rhxh7 {[%clk 0:00:26.3]} 31... Re2+
{[%clk 0:00:12.9]} 32. Kb1 {[%clk 0:00:23.4]} 32... Ne5 {[%clk 0:00:12.8]} 33.
Rxb7 {[%clk 0:00:21.7]} 33... Nd3 {[%clk 0:00:12.5]} 34. Rxa7 {[%clk 0:00:20.5]}
34... Rb2+ {[%clk 0:00:12.4]} 35. Ka1 {[%clk 0:00:20.9]} 35... Rc2 {[%clk
0:00:12.4]} 36. Rhg7+ {[%clk 0:00:19.5]} 36... Kf6 {[%clk 0:00:12.3]} 37. Raf7+
{[%clk 0:00:18]} 37... Ke6 {[%clk 0:00:12.6]} 38. Rf1 {[%clk 0:00:17.4]} 38...
Rxc3 {[%clk 0:00:10.6]} 39. Rg3 {[%clk 0:00:16.5]} 39... Kd5 {[%clk 0:00:10.6]}
40. Rd1 {[%clk 0:00:15.9]} 40... Kd4 {[%clk 0:00:10.9]} 41. Rdxd3+ {[%clk
0:00:15.3]} 41... Rxd3 {[%clk 0:00:11.1]} 42. Rxd3+ {[%clk 0:00:15.7]} 42...
Kxd3 {[%clk 0:00:12]} 43. Kb2 {[%clk 0:00:16.2]} 43... Kd4 {[%clk 0:00:12.7]}
44. Kc2 {[%clk 0:00:16.5]} 44... Kc5 {[%clk 0:00:13.5]} 45. Kc3 {[%clk
0:00:16.9]} 45... Kb5 {[%clk 0:00:14.4]} 46. a3 {[%clk 0:00:16.8]} 46... c5
{[%clk 0:00:14.8]} 47. Kd3 {[%clk 0:00:16.7]} 47... Kb6 {[%clk 0:00:13]} 48. Kc4
{[%clk 0:00:17.6]} 48... Kc6 {[%clk 0:00:13.4]} 49. a4 {[%clk 0:00:17.8]} 49...
Kb6 {[%clk 0:00:12.2]} 50. Kd5 {[%clk 0:00:18.2]} 50... c4 {[%clk 0:00:11]} 51.
Kxc4 {[%clk 0:00:18.3]} 51... Ka5 {[%clk 0:00:11.7]} 52. Kc3 {[%clk 0:00:18.1]}
52... Kb6 {[%clk 0:00:11.9]} 53. b4 {[%clk 0:00:19]} 53... Ka6 {[%clk
0:00:12.3]} 54. Kc4 {[%clk 0:00:19.9]} 54... Kb6 {[%clk 0:00:12.8]} 55. Kd5
{[%clk 0:00:19.7]} 55... Ka6 {[%clk 0:00:13.7]} 56. Kc5 {[%clk 0:00:20.3]} 56...
Kb7 {[%clk 0:00:13.8]} 57. Kb5 {[%clk 0:00:20.8]} 57... Ka7 {[%clk 0:00:14.7]}
58. a5 {[%clk 0:00:20.2]} 58... Kb7 {[%clk 0:00:15.6]} 59. a6+ {[%clk
0:00:19.9]} 59... Ka7 {[%clk 0:00:15.7]} 60. Ka5 {[%clk 0:00:20.8]} 60... Ka8
{[%clk 0:00:16.1]} 61. b5 {[%clk 0:00:21.7]} 61... Ka7 {[%clk 0:00:16.5]} 62.
b6+ {[%clk 0:00:22.6]} 62... Ka8 {[%clk 0:00:17]} 63. Kb5 {[%clk 0:00:23.1]}
63... Kb8 {[%clk 0:00:17.9]} 64. a7+ {[%clk 0:00:12.9]} 64... Kb7 {[%clk
0:00:17.9]} 65. a8=Q+ {[%clk 0:00:13.4]} 65... Kxa8 {[%clk 0:00:17.9]} 66. Ka6
{[%clk 0:00:14.3]} 66... Kb8 {[%clk 0:00:17.8]} 67. b7 {[%clk 0:00:15]} 67...
Kc7 {[%clk 0:00:18.5]} 68. Ka7 {[%clk 0:00:15.6]} 68... Kc6 {[%clk 0:00:18.8]}
69. b8=Q {[%clk 0:00:16]} 1-0

[Event "*** SCC Grand Prix: Titled Tuesday Blitz"]
[Site "Chess.com"]
[Date "2020.06.02"]
[Round "6"]
[White "Harry_Rakkel"]
[Black "GMCarbone"]
[Result "0-1"]
[WhiteElo "2504"]
[BlackElo "2347"]
[TimeControl "180+1"]
[EndTime "11:10:20 PDT"]
[Termination "GMCarbone won by resignation"]

1. d4 {[%clk 0:03:00.9]} 1... Nf6 {[%clk 0:02:59.4]} 2. c4 {[%clk 0:03:01.2]}
2... g6 {[%clk 0:02:59.8]} 3. Nc3 {[%clk 0:03:00.9]} 3... d5 {[%clk 0:03:00.3]}
4. Bf4 {[%clk 0:02:59.6]} 4... Bg7 {[%clk 0:02:59.9]} 5. e3 {[%clk 0:02:59.8]}
5... c5 {[%clk 0:02:59.3]} 6. dxc5 {[%clk 0:02:58.4]} 6... Qa5 {[%clk
0:02:59.2]} 7. Rc1 {[%clk 0:02:57.5]} 7... dxc4 {[%clk 0:02:55.6]} 8. Bxc4
{[%clk 0:02:54.8]} 8... O-O {[%clk 0:02:56]} 9. Ne2 {[%clk 0:02:46.5]} 9... Qxc5
{[%clk 0:02:55.7]} 10. Bb3 {[%clk 0:02:43.9]} 10... Qh5 {[%clk 0:02:42.9]} 11.
O-O {[%clk 0:02:39.3]} 11... Nc6 {[%clk 0:02:42.6]} 12. f3 {[%clk 0:02:31.1]}
12... Rd8 {[%clk 0:02:38.1]} 13. Qe1 {[%clk 0:02:30.3]} 13... Nb4 {[%clk
0:02:30.3]} 14. Rd1 {[%clk 0:02:21.4]} 14... Nd3 {[%clk 0:02:21.4]} 15. Ng3
{[%clk 0:02:02.4]} 15... Qa5 {[%clk 0:02:15.9]} 16. Qe2 {[%clk 0:01:54.8]} 16...
Nxf4 {[%clk 0:02:07.2]} 17. exf4 {[%clk 0:01:55.7]} 17... e6 {[%clk 0:02:00.4]}
18. Kh1 {[%clk 0:01:45.3]} 18... Bd7 {[%clk 0:01:53.6]} 19. Nce4 {[%clk
0:01:27.3]} 19... Bb5 {[%clk 0:01:46.2]} 20. Bc4 {[%clk 0:01:26.3]} 20... Bxc4
{[%clk 0:01:39.8]} 21. Qxc4 {[%clk 0:01:25.8]} 21... Nd5 {[%clk 0:01:40.3]} 22.
Qb3 {[%clk 0:01:06]} 22... Qb6 {[%clk 0:01:34.5]} 23. f5 {[%clk 0:00:52.5]}
23... gxf5 {[%clk 0:01:33]} 24. Nf2 {[%clk 0:00:25.3]} 24... Qxb3 {[%clk
0:01:31.7]} 25. axb3 {[%clk 0:00:24.6]} 25... Bxb2 {[%clk 0:01:32.2]} 26. Nd3
{[%clk 0:00:22.4]} 26... Bf6 {[%clk 0:01:17]} 27. Nh5 {[%clk 0:00:21.2]} 27...
Be7 {[%clk 0:01:14.9]} 28. Rfe1 {[%clk 0:00:20.1]} 28... Rac8 {[%clk 0:01:12.2]}
29. Ne5 {[%clk 0:00:19.3]} 29... b5 {[%clk 0:01:06.4]} 30. Ra1 {[%clk
0:00:18.7]} 30... Rc7 {[%clk 0:01:01.7]} 31. h3 {[%clk 0:00:19.2]} 31... a5
{[%clk 0:00:58.8]} 32. g4 {[%clk 0:00:19]} 32... fxg4 {[%clk 0:00:57.2]} 33.
hxg4 {[%clk 0:00:19]} 33... Bb4 {[%clk 0:00:56.4]} 34. Red1 {[%clk 0:00:17.5]}
34... Rdc8 {[%clk 0:00:52]} 35. Kg2 {[%clk 0:00:16.4]} 35... Rc3 {[%clk
0:00:49.3]} 36. Rh1 {[%clk 0:00:14.8]} 36... Rxb3 {[%clk 0:00:47.9]} 37. Nd7
{[%clk 0:00:14.7]} 37... Rb2+ {[%clk 0:00:39.3]} 38. Kg3 {[%clk 0:00:13.9]}
38... Bd6+ {[%clk 0:00:39.2]} 39. Kh4 {[%clk 0:00:12.4]} 39... Be7+ {[%clk
0:00:38.8]} 40. g5 {[%clk 0:00:12.6]} 40... Rc4+ {[%clk 0:00:35.8]} 41. Kg3
{[%clk 0:00:11.8]} 41... a4 {[%clk 0:00:30.2]} 42. Nhf6+ {[%clk 0:00:09.4]}
42... Bxf6 {[%clk 0:00:25.5]} 43. gxf6 {[%clk 0:00:10.3]} 43... Rb3 {[%clk
0:00:22.1]} 44. Rag1 {[%clk 0:00:08.9]} 44... Rf4 {[%clk 0:00:14]} 45. Rh5
{[%clk 0:00:07]} 45... Rfxf3+ {[%clk 0:00:11.5]} 46. Kh2+ {[%clk 0:00:07.1]}
46... Kh8 {[%clk 0:00:12]} 47. Ne5 {[%clk 0:00:06.3]} 47... Rf2+ {[%clk
0:00:11.6]} 48. Kh1 {[%clk 0:00:05.9]} 48... Rxf6 {[%clk 0:00:10.9]} 49. Rc1
{[%clk 0:00:04.1]} 49... Rc3 {[%clk 0:00:07.2]} 50. Rg1 {[%clk 0:00:03.2]} 50...
h6 {[%clk 0:00:04.6]} 51. Nd7 {[%clk 0:00:02.6]} 51... Rg6 {[%clk 0:00:04]} 52.
Rxg6 {[%clk 0:00:01.9]} 52... fxg6 {[%clk 0:00:04.9]} 53. Rxh6+ {[%clk
0:00:01.8]} 53... Kg7 {[%clk 0:00:05.6]} 54. Rh2 {[%clk 0:00:01.1]} 54... a3
{[%clk 0:00:05.9]} 55. Ne5 {[%clk 0:00:02]} 55... Rb3 {[%clk 0:00:04.7]} 56. Rg2
{[%clk 0:00:01.7]} 56... Rb1+ {[%clk 0:00:04.8]} 57. Kh2 {[%clk 0:00:01.8]}
57... Rb2 {[%clk 0:00:05.7]} 58. Nxg6 {[%clk 0:00:01.2]} 58... Rxg2+ {[%clk
0:00:05.4]} 59. Kxg2 {[%clk 0:00:02.1]} 0-1

[Event "*** SCC Grand Prix: Titled Tuesday Blitz"]
[Site "Chess.com"]
[Date "2020.06.02"]
[Round "6"]
[White "PavelShkapenko"]
[Black "Rakesh"]
[Result "0-1"]
[WhiteElo "2634"]
[BlackElo "2374"]
[TimeControl "180+1"]
[EndTime "11:10:22 PDT"]
[Termination "Rakesh won by resignation"]

1. e4 {[%clk 0:03:00.9]} 1... c5 {[%clk 0:03:00.2]} 2. c3 {[%clk 0:03:00.8]}
2... Nf6 {[%clk 0:02:59.5]} 3. e5 {[%clk 0:03:00.9]} 3... Nd5 {[%clk 0:03:00.1]}
4. d4 {[%clk 0:03:01.4]} 4... cxd4 {[%clk 0:03:01]} 5. cxd4 {[%clk 0:03:01.9]}
5... e6 {[%clk 0:03:01]} 6. Nc3 {[%clk 0:03:01.2]} 6... Nxc3 {[%clk 0:03:00.9]}
7. bxc3 {[%clk 0:03:01.5]} 7... Qc7 {[%clk 0:03:01.8]} 8. Bd2 {[%clk 0:03:01.4]}
8... d6 {[%clk 0:03:02.7]} 9. f4 {[%clk 0:03:01.5]} 9... Nc6 {[%clk 0:03:02.5]}
10. Bd3 {[%clk 0:03:00.3]} 10... Be7 {[%clk 0:02:59.2]} 11. Nh3 {[%clk
0:03:00.3]} 11... b6 {[%clk 0:02:59.6]} 12. O-O {[%clk 0:03:00.2]} 12... Bb7
{[%clk 0:03:00]} 13. Qh5 {[%clk 0:02:59.6]} 13... g6 {[%clk 0:02:57.2]} 14. Qh6
{[%clk 0:02:59.2]} 14... O-O-O {[%clk 0:02:57.5]} 15. Ng5 {[%clk 0:02:58.2]}
15... Bxg5 {[%clk 0:02:52.6]} 16. Qxg5 {[%clk 0:02:58]} 16... dxe5 {[%clk
0:02:53.1]} 17. fxe5 {[%clk 0:02:57.8]} 17... Nxe5 {[%clk 0:02:49.5]} 18. Bf4
{[%clk 0:02:48]} 18... f6 {[%clk 0:02:49.6]} 19. Qg3 {[%clk 0:01:52.7]} 19...
Qc6 {[%clk 0:02:49.3]} 20. Be2 {[%clk 0:01:30.3]} 20... Nc4 {[%clk 0:02:31.8]}
21. Bh6 {[%clk 0:01:24.1]} 21... f5 {[%clk 0:02:29]} 22. Bf3 {[%clk 0:01:07.4]}
22... Qd7 {[%clk 0:02:17.3]} 23. Bg5 {[%clk 0:01:06.3]} 23... Rde8 {[%clk
0:02:12.3]} 24. Be2 {[%clk 0:00:57.7]} 24... Nd6 {[%clk 0:01:45.8]} 25. Bf4
{[%clk 0:00:57.9]} 25... Ne4 {[%clk 0:01:33.5]} 26. Qd3 {[%clk 0:00:57]} 26...
g5 {[%clk 0:01:32.7]} 27. Be5 {[%clk 0:00:57.3]} 27... Rhf8 {[%clk 0:01:32.5]}
28. c4 {[%clk 0:00:54.6]} 28... Rd8 {[%clk 0:01:30.1]} 29. c5 {[%clk 0:00:53.3]}
29... Qd5 {[%clk 0:01:23.1]} 30. cxb6 {[%clk 0:00:51.5]} 30... Nc5 {[%clk
0:01:07.9]} 31. Qg3 {[%clk 0:00:48.6]} 31... f4 {[%clk 0:01:07.9]} 32. Qh3
{[%clk 0:00:47.8]} 32... h5 {[%clk 0:00:45.6]} 33. Rf2 {[%clk 0:00:24.4]} 33...
Ne4 {[%clk 0:00:38.3]} 34. Rc1+ {[%clk 0:00:23.3]} 34... Bc6 {[%clk 0:00:36.4]}
35. Qf3 {[%clk 0:00:09.8]} 35... g4 {[%clk 0:00:31]} 36. b7+ {[%clk 0:00:10]}
36... Kxb7 {[%clk 0:00:29.3]} 37. Qb3+ {[%clk 0:00:10.1]} 37... Qxb3 {[%clk
0:00:29.1]} 38. axb3 {[%clk 0:00:10.6]} 38... Nxf2 {[%clk 0:00:27.6]} 39. Kxf2
{[%clk 0:00:11.1]} 39... g3+ {[%clk 0:00:21.9]} 40. hxg3 {[%clk 0:00:09.5]}
40... fxg3+ {[%clk 0:00:22.4]} 41. Ke3 {[%clk 0:00:10]} 41... h4 {[%clk
0:00:22.2]} 42. b4 {[%clk 0:00:07.5]} 42... Bxg2 {[%clk 0:00:20]} 43. Rc7+
{[%clk 0:00:06.9]} 43... Ka8 {[%clk 0:00:19.3]} 44. Rh7 {[%clk 0:00:05.4]} 44...
h3 {[%clk 0:00:19.6]} 45. Bxg3 {[%clk 0:00:05]} 45... Rg8 {[%clk 0:00:18.7]} 46.
Be5 {[%clk 0:00:04.8]} 46... Rdf8 {[%clk 0:00:18.3]} 47. Bd6 {[%clk 0:00:04.3]}
47... Rd8 {[%clk 0:00:17.9]} 48. Be5 {[%clk 0:00:04.4]} 48... Rc8 {[%clk
0:00:14]} 49. Bd3 {[%clk 0:00:04.1]} 49... Rc1 {[%clk 0:00:13]} 50. Kd2 {[%clk
0:00:04.3]} 50... Rf1 {[%clk 0:00:09.2]} 51. Bxf1 {[%clk 0:00:03.3]} 51... Bxf1
{[%clk 0:00:10.1]} 52. Ke1 {[%clk 0:00:03.8]} 52... Bg2 {[%clk 0:00:10.4]} 53.
Kf2 {[%clk 0:00:04.2]} 53... Rc8 {[%clk 0:00:10]} 54. Kg3 {[%clk 0:00:04.2]}
54... a6 {[%clk 0:00:10.4]} 55. Rh8 {[%clk 0:00:04.6]} 55... Rxh8 {[%clk
0:00:10.1]} 56. Bxh8 {[%clk 0:00:05.1]} 56... Kb7 {[%clk 0:00:10.8]} 57. Be5
{[%clk 0:00:05.7]} 57... Kc6 {[%clk 0:00:11.4]} 58. Bf6 {[%clk 0:00:06.1]} 58...
Kd5 {[%clk 0:00:11.6]} 59. Be5 {[%clk 0:00:06.1]} 59... Kc4 {[%clk 0:00:11.7]}
60. Bd6 {[%clk 0:00:06.2]} 60... Kxd4 {[%clk 0:00:12]} 61. Bc5+ {[%clk
0:00:06.8]} 61... Kc4 {[%clk 0:00:12.1]} 62. Kf2 {[%clk 0:00:07.2]} 62... a5
{[%clk 0:00:12.1]} 0-1

[Event "*** SCC Grand Prix: Titled Tuesday Blitz"]
[Site "Chess.com"]
[Date "2020.06.02"]
[Round "6"]
[White "sopo-tereladze"]
[Black "Ashedu66"]
[Result "0-1"]
[WhiteElo "2334"]
[BlackElo "2186"]
[TimeControl "180+1"]
[EndTime "11:10:22 PDT"]
[Termination "Ashedu66 won on time"]

1. e4 {[%clk 0:03:00.9]} 1... e5 {[%clk 0:02:59.8]} 2. Nf3 {[%clk 0:03:00.3]}
2... Nc6 {[%clk 0:02:59.2]} 3. Bc4 {[%clk 0:03:00]} 3... Bc5 {[%clk 0:02:58.6]}
4. d3 {[%clk 0:02:57.4]} 4... Nf6 {[%clk 0:02:58.5]} 5. c3 {[%clk 0:02:55]} 5...
a6 {[%clk 0:02:57.1]} 6. a4 {[%clk 0:02:51.1]} 6... Ba7 {[%clk 0:02:56]} 7. O-O
{[%clk 0:02:50.4]} 7... O-O {[%clk 0:02:55.7]} 8. Nbd2 {[%clk 0:02:50.6]} 8...
d5 {[%clk 0:02:53.9]} 9. Ba2 {[%clk 0:02:47.7]} 9... dxe4 {[%clk 0:02:52.5]} 10.
Nxe4 {[%clk 0:02:38.4]} 10... Nxe4 {[%clk 0:02:48]} 11. dxe4 {[%clk 0:02:39.3]}
11... Qxd1 {[%clk 0:02:47.7]} 12. Rxd1 {[%clk 0:02:39.6]} 12... Bg4 {[%clk
0:02:46.8]} 13. Be3 {[%clk 0:02:36.2]} 13... Rad8 {[%clk 0:02:40.7]} 14. Rxd8
{[%clk 0:02:24.5]} 14... Rxd8 {[%clk 0:02:38.9]} 15. Bxa7 {[%clk 0:02:24.9]}
15... Bxf3 {[%clk 0:02:37.6]} 16. gxf3 {[%clk 0:02:07.1]} 16... Nxa7 {[%clk
0:02:37.2]} 17. Kf1 {[%clk 0:02:01.4]} 17... Kf8 {[%clk 0:02:26.1]} 18. Ke2
{[%clk 0:02:00.5]} 18... Ke7 {[%clk 0:02:22.8]} 19. Rg1 {[%clk 0:01:55.7]} 19...
g6 {[%clk 0:02:19.8]} 20. Ke3 {[%clk 0:01:54.4]} 20... a5 {[%clk 0:02:03.6]} 21.
h4 {[%clk 0:01:53.2]} 21... Kf6 {[%clk 0:01:48]} 22. Bc4 {[%clk 0:01:38.6]}
22... b6 {[%clk 0:01:43]} 23. Rg4 {[%clk 0:01:20.7]} 23... Rd1 {[%clk
0:01:27.9]} 24. f4 {[%clk 0:01:20.1]} 24... h5 {[%clk 0:01:21.7]} 25. Rg5 {[%clk
0:01:17.3]} 25... Nc6 {[%clk 0:01:09.5]} 26. Bd5 {[%clk 0:01:12.9]} 26... exf4+
{[%clk 0:01:05.7]} 27. Kxf4 {[%clk 0:01:13.8]} 27... Ne7 {[%clk 0:01:01.4]} 28.
e5+ {[%clk 0:01:05.6]} 28... Kg7 {[%clk 0:00:59.8]} 29. Be4 {[%clk 0:01:06.5]}
29... Rd2 {[%clk 0:00:54.5]} 30. f3 {[%clk 0:01:04.7]} 30... Rxb2 {[%clk
0:00:54.1]} 31. e6 {[%clk 0:00:59.4]} 31... f5 {[%clk 0:00:31.8]} 32. Bb7 {[%clk
0:00:43.2]} 32... Kf6 {[%clk 0:00:27.1]} 33. Rg1 {[%clk 0:00:36.8]} 33... Ra2
{[%clk 0:00:23.9]} 34. Re1 {[%clk 0:00:27.1]} 34... Rxa4+ {[%clk 0:00:22.9]} 35.
Kg3 {[%clk 0:00:25.7]} 35... Rc4 {[%clk 0:00:20.7]} 36. f4 {[%clk 0:00:15]}
36... Rxc3+ {[%clk 0:00:20.2]} 37. Bf3 {[%clk 0:00:15.4]} 37... Rd3 {[%clk
0:00:16.2]} 38. Rc1 {[%clk 0:00:12.5]} 38... c5 {[%clk 0:00:16.1]} 39. Rb1
{[%clk 0:00:11.5]} 39... Rd6 {[%clk 0:00:16.1]} 40. Kf2 {[%clk 0:00:06]} 40...
Rxe6 {[%clk 0:00:15.6]} 41. Rd1 {[%clk 0:00:06]} 41... a4 {[%clk 0:00:11.5]} 42.
Rd8 {[%clk 0:00:06.3]} 42... b5 {[%clk 0:00:09.2]} 43. Rf8+ {[%clk 0:00:05.5]}
43... Kg7 {[%clk 0:00:08]} 44. Rb8 {[%clk 0:00:06.4]} 44... b4 {[%clk
0:00:07.3]} 45. Rb7 {[%clk 0:00:06.3]} 45... Kf6 {[%clk 0:00:06.5]} 46. Ra7
{[%clk 0:00:05.3]} 46... a3 {[%clk 0:00:06.6]} 47. Be2 {[%clk 0:00:05.1]} 47...
Rd6 {[%clk 0:00:06.2]} 48. Bc4 {[%clk 0:00:04]} 48... Rd4 {[%clk 0:00:05.8]} 49.
Ra6+ {[%clk 0:00:03.4]} 49... Kg7 {[%clk 0:00:05.8]} 50. Be6 {[%clk 0:00:03.1]}
50... Rxf4+ {[%clk 0:00:05.5]} 51. Kg3 {[%clk 0:00:02.9]} 51... Re4 {[%clk
0:00:05.6]} 52. Kf3 {[%clk 0:00:02.7]} 52... Kf6 {[%clk 0:00:03.7]} 53. Bb3+
{[%clk 0:00:02.8]} 53... Ke5 {[%clk 0:00:03.7]} 54. Re6+ {[%clk 0:00:01.6]}
54... Kd4 {[%clk 0:00:03.9]} 55. Rd6+ {[%clk 0:00:02.5]} 55... Kc3 {[%clk
0:00:03.8]} 56. Bf7 {[%clk 0:00:01.5]} 56... Rd4 {[%clk 0:00:03.8]} 0-1

[Event "*** SCC Grand Prix: Titled Tuesday Blitz"]
[Site "Chess.com"]
[Date "2020.06.02"]
[Round "6"]
[White "AlexanderL"]
[Black "BLITZMASTER"]
[Result "1-0"]
[WhiteElo "2807"]
[BlackElo "2515"]
[TimeControl "180+1"]
[EndTime "11:10:24 PDT"]
[Termination "AlexanderL won on time"]

1. Nf3 {[%clk 0:02:32.7]} 1... g6 {[%clk 0:02:55.8]} 2. e4 {[%clk 0:02:30]} 2...
Bg7 {[%clk 0:02:54.8]} 3. c4 {[%clk 0:02:20.9]} 3... c5 {[%clk 0:02:51.7]} 4. d4
{[%clk 0:02:19.8]} 4... Qa5+ {[%clk 0:02:47.9]} 5. Bd2 {[%clk 0:02:05.9]} 5...
Qb6 {[%clk 0:02:47.1]} 6. Nc3 {[%clk 0:02:05.7]} 6... cxd4 {[%clk 0:02:42.5]} 7.
Nd5 {[%clk 0:02:05.5]} 7... Qd8 {[%clk 0:02:42.5]} 8. Bf4 {[%clk 0:02:04.3]}
8... d6 {[%clk 0:02:39.4]} 9. e5 {[%clk 0:01:48.5]} 9... e6 {[%clk 0:02:11.5]}
10. Nb4 {[%clk 0:01:47.7]} 10... dxe5 {[%clk 0:02:02.1]} 11. Nxe5 {[%clk
0:01:47.4]} 11... Qa5 {[%clk 0:01:54.1]} 12. Nd3 {[%clk 0:01:45.8]} 12... Nc6
{[%clk 0:01:47.5]} 13. Bd2 {[%clk 0:01:40.6]} 13... Qc7 {[%clk 0:01:44.4]} 14.
Nxc6 {[%clk 0:01:26.9]} 14... bxc6 {[%clk 0:01:37.9]} 15. Bb4 {[%clk 0:01:23.3]}
15... Ne7 {[%clk 0:01:22.6]} 16. Be2 {[%clk 0:01:20.9]} 16... O-O {[%clk
0:01:20.5]} 17. O-O {[%clk 0:01:20.7]} 17... Rd8 {[%clk 0:01:17.9]} 18. Nc5
{[%clk 0:01:16.6]} 18... a5 {[%clk 0:01:15]} 19. Ba3 {[%clk 0:01:16.7]} 19... e5
{[%clk 0:01:13.1]} 20. Rc1 {[%clk 0:01:10.1]} 20... f5 {[%clk 0:01:07.4]} 21. f3
{[%clk 0:01:10.3]} 21... Bh6 {[%clk 0:01:02.7]} 22. Rc2 {[%clk 0:01:10.1]} 22...
Be3+ {[%clk 0:01:02.7]} 23. Kh1 {[%clk 0:01:09.9]} 23... Kg7 {[%clk 0:00:46.6]}
24. Bd3 {[%clk 0:01:10]} 24... Ng8 {[%clk 0:00:45.9]} 25. Re2 {[%clk 0:01:09.9]}
25... Nf6 {[%clk 0:00:45.6]} 26. b3 {[%clk 0:01:07.8]} 26... Qf7 {[%clk
0:00:39.8]} 27. Rxe3 {[%clk 0:01:01.6]} 27... dxe3 {[%clk 0:00:38.8]} 28. Qe1
{[%clk 0:01:02.3]} 28... f4 {[%clk 0:00:29.8]} 29. Qc3 {[%clk 0:00:58.9]} 29...
Re8 {[%clk 0:00:22.6]} 30. Bb2 {[%clk 0:00:56.1]} 30... Bf5 {[%clk 0:00:20.8]}
31. Bxf5 {[%clk 0:00:53.5]} 31... gxf5 {[%clk 0:00:21.7]} 32. Nd3 {[%clk
0:00:53.9]} 32... Nd7 {[%clk 0:00:22.3]} 33. Nxf4 {[%clk 0:00:53.9]} 33... Kh6
{[%clk 0:00:19]} 34. Qxe3 {[%clk 0:00:46.4]} 34... exf4 {[%clk 0:00:15.5]} 35.
Qxf4+ {[%clk 0:00:47.3]} 35... Kg6 {[%clk 0:00:15.6]} 36. g4 {[%clk 0:00:44.2]}
36... h6 {[%clk 0:00:11]} 37. Rd1 {[%clk 0:00:37.1]} 37... Nf8 {[%clk
0:00:08.7]} 38. gxf5+ {[%clk 0:00:30.4]} 38... Kh7 {[%clk 0:00:07.8]} 39. Rd6
{[%clk 0:00:30.9]} 39... Re1+ {[%clk 0:00:03.6]} 40. Kg2 {[%clk 0:00:31.1]}
40... Qg8+ {[%clk 0:00:04.1]} 41. Kh3 {[%clk 0:00:29.3]} 41... Qg5 {[%clk
0:00:01.9]} 42. Qxg5 {[%clk 0:00:15.2]} 42... hxg5 {[%clk 0:00:02.8]} 43. Kg4
{[%clk 0:00:16]} 43... Rae8 {[%clk 0:00:03.2]} 44. Kh5 {[%clk 0:00:14.1]} 44...
R1e7 {[%clk 0:00:02.5]} 45. Kxg5 {[%clk 0:00:06.3]} 45... Kg8 {[%clk 0:00:02.8]}
46. Kf4 {[%clk 0:00:05.7]} 46... Nh7 {[%clk 0:00:02.8]} 47. Rg6+ {[%clk
0:00:05.4]} 47... Kf8 {[%clk 0:00:02.7]} 48. Ba3 {[%clk 0:00:05.8]} 48... Kf7
{[%clk 0:00:02]} 49. Bxe7 {[%clk 0:00:06]} 49... Rxe7 {[%clk 0:00:02.9]} 50.
Rxc6 {[%clk 0:00:06.5]} 50... Ra7 {[%clk 0:00:03.4]} 51. h4 {[%clk 0:00:06]}
51... Nf8 {[%clk 0:00:04.1]} 52. h5 {[%clk 0:00:06.2]} 52... Nd7 {[%clk
0:00:05]} 53. h6 {[%clk 0:00:06.3]} 53... Nf6 {[%clk 0:00:05.9]} 54. Kg5 {[%clk
0:00:05.1]} 54... Nh7+ {[%clk 0:00:06.5]} 55. Kf4 {[%clk 0:00:05.5]} 55... Nf6
{[%clk 0:00:07.4]} 56. Ke5 {[%clk 0:00:06]} 56... Nd7+ {[%clk 0:00:07.6]} 57.
Kd4 {[%clk 0:00:06.4]} 57... Nf6 {[%clk 0:00:08.5]} 58. Kc5 {[%clk 0:00:06.3]}
58... Nd7+ {[%clk 0:00:08.7]} 59. Kb5 {[%clk 0:00:06.4]} 59... a4 {[%clk
0:00:09.6]} 60. b4 {[%clk 0:00:05.1]} 60... a3 {[%clk 0:00:09.6]} 61. c5 {[%clk
0:00:05.4]} 61... Rb7+ {[%clk 0:00:10]} 62. Ka5 {[%clk 0:00:03.8]} 62... Ne5
{[%clk 0:00:10.3]} 63. Rb6 {[%clk 0:00:02.5]} 63... Nc4+ {[%clk 0:00:10.5]} 64.
Ka6 {[%clk 0:00:02.9]} 64... Re7 {[%clk 0:00:09.7]} 65. Re6 {[%clk 0:00:02.6]}
65... Rd7 {[%clk 0:00:09.8]} 66. h7 {[%clk 0:00:02.1]} 66... Kg7 {[%clk
0:00:09.5]} 67. Rh6 {[%clk 0:00:02.6]} 67... Kh8 {[%clk 0:00:09.8]} 68. c6
{[%clk 0:00:03.1]} 68... Rc7 {[%clk 0:00:04.4]} 69. b5 {[%clk 0:00:03.5]} 69...
Rc8 {[%clk 0:00:03.7]} 70. b6 {[%clk 0:00:03.7]} 1-0